[Event "Early-Titled-Tuesday-Blitz-April-23-2024"]
[Site "Chess.com"]
[Date "2024.04.23"]
[Round "7"]
[White "kidagent"]
[Black "Hope_6"]
[Result "1-0"]
[WhiteElo "2356"]
[BlackElo "2635"]
[TimeControl "180+1"]
[EndTime "9:18:43 PDT"]
[Termination "kidagent won by resignation"]

1. e4 {[%clk 0:03:00.9]} 1... c6 {[%clk 0:02:48.7]} 2. d4 {[%clk 0:02:59.3]}
2... d5 {[%clk 0:02:48.9]} 3. Nc3 {[%clk 0:03:00]} 3... dxe4 {[%clk 0:02:46.9]}
4. Nxe4 {[%clk 0:03:00.9]} 4... Nf6 {[%clk 0:02:47.6]} 5. Ng3 {[%clk 0:02:58.5]}
5... Qc7 {[%clk 0:02:46.6]} 6. Nf3 {[%clk 0:02:55.4]} 6... g6 {[%clk 0:02:45]}
7. Bc4 {[%clk 0:02:53.7]} 7... Bg7 {[%clk 0:02:44.5]} 8. O-O {[%clk 0:02:49.6]}
8... O-O {[%clk 0:02:40.7]} 9. Re1 {[%clk 0:02:47.9]} 9... Rd8 {[%clk
0:02:38.8]} 10. c3 {[%clk 0:02:47.2]} 10... c5 {[%clk 0:02:18.8]} 11. Qb3 {[%clk
0:02:45.7]} 11... e6 {[%clk 0:02:13]} 12. dxc5 {[%clk 0:02:34.6]} 12... Nc6
{[%clk 0:02:04.5]} 13. Qc2 {[%clk 0:02:30.8]} 13... b6 {[%clk 0:01:45.3]} 14.
cxb6 {[%clk 0:02:29.7]} 14... axb6 {[%clk 0:01:31.8]} 15. Be3 {[%clk 0:02:28.5]}
15... Bb7 {[%clk 0:01:28.5]} 16. Red1 {[%clk 0:02:24.3]} 16... Na5 {[%clk
0:01:24.8]} 17. Be2 {[%clk 0:02:21.1]} 17... Nd5 {[%clk 0:01:20.3]} 18. Bg5
{[%clk 0:02:00.5]} 18... f6 {[%clk 0:01:02.5]} 19. Bc1 {[%clk 0:02:00.1]} 19...
Nf4 {[%clk 0:00:55.7]} 20. Rxd8+ {[%clk 0:01:55.5]} 20... Rxd8 {[%clk 0:00:55]}
21. Bxf4 {[%clk 0:01:51.4]} 21... Qxf4 {[%clk 0:00:55.9]} 22. Nd4 {[%clk
0:01:45.9]} 22... Re8 {[%clk 0:00:35.3]} 23. Re1 {[%clk 0:01:42.3]} 23... Nc6
{[%clk 0:00:31.3]} 24. Nb5 {[%clk 0:01:36.5]} 24... f5 {[%clk 0:00:20.4]} 25.
Bf3 {[%clk 0:01:32.2]} 25... e5 {[%clk 0:00:16.2]} 26. Bd5+ {[%clk 0:01:30.5]}
26... Kh8 {[%clk 0:00:15.8]} 27. Nd6 {[%clk 0:01:25.5]} 27... Rd8 {[%clk
0:00:13.3]} 28. Nf7+ {[%clk 0:01:23.7]} 28... Kg8 {[%clk 0:00:13.5]} 29. Nxd8+
{[%clk 0:01:23.9]} 29... Kh8 {[%clk 0:00:11.5]} 30. Nxc6 {[%clk 0:01:21.4]}
30... e4 {[%clk 0:00:09.7]} 31. Nxe4 {[%clk 0:01:16.3]} 31... fxe4 {[%clk
0:00:09.3]} 32. Qxe4 {[%clk 0:01:16.3]} 32... Qd6 {[%clk 0:00:05.4]} 1-0

[Event "Early-Titled-Tuesday-Blitz-April-23-2024"]
[Site "Chess.com"]
[Date "2024.04.23"]
[Round "7"]
[White "Kiborg95"]
[Black "Ginger_GM"]
[Result "1-0"]
[WhiteElo "2839"]
[BlackElo "2662"]
[TimeControl "180+1"]
[EndTime "9:18:45 PDT"]
[Termination "Kiborg95 won by resignation"]

1. e4 {[%clk 0:02:56.2]} 1... c5 {[%clk 0:02:59]} 2. Nc3 {[%clk 0:02:50.9]} 2...
Nc6 {[%clk 0:02:57.9]} 3. Nge2 {[%clk 0:02:50.9]} 3... g6 {[%clk 0:02:55.9]} 4.
d4 {[%clk 0:02:51.2]} 4... cxd4 {[%clk 0:02:55.9]} 5. Nxd4 {[%clk 0:02:52.1]}
5... Bg7 {[%clk 0:02:56.2]} 6. Be3 {[%clk 0:02:52.8]} 6... Nf6 {[%clk 0:02:56]}
7. Bc4 {[%clk 0:02:53.5]} 7... O-O {[%clk 0:02:54.2]} 8. Bb3 {[%clk 0:02:54.2]}
8... d6 {[%clk 0:02:53.5]} 9. f3 {[%clk 0:02:54.7]} 9... Bd7 {[%clk 0:02:52.7]}
10. h4 {[%clk 0:02:55.4]} 10... h5 {[%clk 0:02:52.4]} 11. Qd2 {[%clk 0:02:55.7]}
11... Ne5 {[%clk 0:02:48.6]} 12. O-O-O {[%clk 0:02:55.9]} 12... b5 {[%clk
0:02:48.6]} 13. Ndxb5 {[%clk 0:02:46.4]} 13... Qb8 {[%clk 0:02:48.4]} 14. Qe2
{[%clk 0:02:27.5]} 14... Rc8 {[%clk 0:02:41.6]} 15. Nd4 {[%clk 0:02:12.7]} 15...
a5 {[%clk 0:02:39.3]} 16. a4 {[%clk 0:02:12.4]} 16... Be8 {[%clk 0:02:19.9]} 17.
Ndb5 {[%clk 0:02:08.5]} 17... Qb7 {[%clk 0:01:57.4]} 18. Bg5 {[%clk 0:02:03]}
18... Ra6 {[%clk 0:01:43.1]} 19. Kb1 {[%clk 0:01:59.3]} 19... Bxb5 {[%clk
0:01:20.3]} 20. Nxb5 {[%clk 0:01:55.3]} 20... Rac6 {[%clk 0:01:01.3]} 21. Bxf6
{[%clk 0:01:46.4]} 21... Bxf6 {[%clk 0:01:01.3]} 22. Bd5 {[%clk 0:01:47.1]}
22... Qb6 {[%clk 0:01:01.7]} 23. Bxc6 {[%clk 0:01:47.1]} 23... Qxc6 {[%clk
0:01:01.9]} 24. Na7 {[%clk 0:01:39.7]} 24... Qc7 {[%clk 0:00:58.7]} 25. Nxc8
{[%clk 0:01:39.6]} 25... Qxc8 {[%clk 0:00:59.2]} 26. Rd5 {[%clk 0:01:24.9]}
26... Nc4 {[%clk 0:00:58.2]} 27. c3 {[%clk 0:01:25.5]} 27... Qc6 {[%clk
0:00:52.5]} 28. Rb5 {[%clk 0:01:24.7]} 28... Nb6 {[%clk 0:00:45.9]} 29. Rxb6
{[%clk 0:01:21.5]} 29... Qxb6 {[%clk 0:00:45.9]} 30. Qc2 {[%clk 0:01:18.5]}
30... Kg7 {[%clk 0:00:44.1]} 31. Ka2 {[%clk 0:01:18.4]} 31... Qc5 {[%clk
0:00:42.7]} 32. Rd1 {[%clk 0:01:09]} 32... Bxh4 {[%clk 0:00:40.8]} 33. Rd5
{[%clk 0:01:09.4]} 33... Qc7 {[%clk 0:00:39.6]} 34. Qb3 {[%clk 0:00:57.6]} 34...
Bf2 {[%clk 0:00:36.9]} 35. Qb5 {[%clk 0:00:56.7]} 35... Bb6 {[%clk 0:00:36.8]}
36. e5 {[%clk 0:00:56.5]} 36... dxe5 {[%clk 0:00:35.7]} 37. Rxe5 {[%clk
0:00:57.4]} 37... e6 {[%clk 0:00:36]} 38. Re4 {[%clk 0:00:57.7]} 38... Bc5
{[%clk 0:00:34.5]} 39. Rc4 {[%clk 0:00:56.8]} 1-0

[Event "Early-Titled-Tuesday-Blitz-April-23-2024"]
[Site "Chess.com"]
[Date "2024.04.23"]
[Round "7"]
[White "MatyChess1"]
[Black "Larkin-Vladislav"]
[Result "1-0"]
[WhiteElo "2695"]
[BlackElo "2866"]
[TimeControl "180+1"]
[EndTime "9:18:46 PDT"]
[Termination "MatyChess1 won on time"]

1. Nf3 {[%clk 0:03:00.9]} 1... d6 {[%clk 0:02:37.9]} 2. d4 {[%clk 0:03:00.7]}
2... Bg4 {[%clk 0:02:37.4]} 3. c4 {[%clk 0:02:59.1]} 3... Nf6 {[%clk 0:02:27.7]}
4. g3 {[%clk 0:02:59.2]} 4... Bxf3 {[%clk 0:02:22.6]} 5. exf3 {[%clk 0:03:00.1]}
5... c6 {[%clk 0:02:23.5]} 6. Nc3 {[%clk 0:02:58.4]} 6... g6 {[%clk 0:02:14.1]}
7. Bg2 {[%clk 0:02:45.9]} 7... d5 {[%clk 0:02:10.5]} 8. Qb3 {[%clk 0:02:37.5]}
8... Qd7 {[%clk 0:01:53.5]} 9. Bg5 {[%clk 0:02:26.8]} 9... dxc4 {[%clk
0:01:42.4]} 10. Qxc4 {[%clk 0:02:27.7]} 10... Nd5 {[%clk 0:01:42.9]} 11. O-O
{[%clk 0:02:22.8]} 11... h6 {[%clk 0:01:42.2]} 12. Bd2 {[%clk 0:02:22.7]} 12...
Bg7 {[%clk 0:01:40.7]} 13. Rfe1 {[%clk 0:02:15.5]} 13... O-O {[%clk 0:01:38.3]}
14. Rad1 {[%clk 0:02:16.1]} 14... Na6 {[%clk 0:01:34]} 15. Ne4 {[%clk
0:02:06.3]} 15... Nb6 {[%clk 0:01:14.8]} 16. Qb3 {[%clk 0:02:03.5]} 16... Qxd4
{[%clk 0:01:06.2]} 17. Bxh6 {[%clk 0:01:59.2]} 17... Qxb2 {[%clk 0:01:06.4]} 18.
Qxb2 {[%clk 0:01:58.1]} 18... Bxb2 {[%clk 0:01:05]} 19. Bxf8 {[%clk 0:01:59]}
19... Kxf8 {[%clk 0:01:03]} 20. Bf1 {[%clk 0:01:59.6]} 20... Nc7 {[%clk
0:00:55.5]} 21. Nc5 {[%clk 0:01:58.1]} 21... Rb8 {[%clk 0:00:39.5]} 22. Rd7
{[%clk 0:01:47.7]} 22... Ncd5 {[%clk 0:00:07.7]} 23. Rxb7 {[%clk 0:01:39.1]}
23... Rd8 {[%clk 0:00:08]} 24. Rxa7 {[%clk 0:01:30.9]} 24... e6 {[%clk
0:00:08.5]} 25. Rb7 {[%clk 0:01:22.6]} 25... Re8 {[%clk 0:00:03.1]} 26. Rb1
{[%clk 0:01:14.3]} 26... Bd4 {[%clk 0:00:03]} 27. Nb3 {[%clk 0:01:11.4]} 27...
Be5 {[%clk 0:00:01.1]} 28. Na5 {[%clk 0:01:10.1]} 1-0

[Event "Early-Titled-Tuesday-Blitz-April-23-2024"]
[Site "Chess.com"]
[Date "2024.04.23"]
[Round "7"]
[White "mertfelin"]
[Black "lluiss"]
[Result "1-0"]
[WhiteElo "2267"]
[BlackElo "2131"]
[TimeControl "180+1"]
[EndTime "9:18:54 PDT"]
[Termination "mertfelin won by resignation"]

1. e4 {[%clk 0:03:00]} 1... c5 {[%clk 0:02:58.9]} 2. Nf3 {[%clk 0:03:00.3]} 2...
d6 {[%clk 0:02:59]} 3. d4 {[%clk 0:03:00.9]} 3... cxd4 {[%clk 0:02:59.2]} 4.
Nxd4 {[%clk 0:03:01.8]} 4... Nf6 {[%clk 0:02:58.8]} 5. Nc3 {[%clk 0:03:02.2]}
5... g6 {[%clk 0:02:59.1]} 6. Be3 {[%clk 0:03:01.9]} 6... Bg7 {[%clk 0:02:59.2]}
7. f3 {[%clk 0:03:02.7]} 7... O-O {[%clk 0:02:58.8]} 8. Qd2 {[%clk 0:03:03.4]}
8... Nc6 {[%clk 0:02:58.9]} 9. O-O-O {[%clk 0:03:03.8]} 9... Nxd4 {[%clk
0:02:58.7]} 10. Bxd4 {[%clk 0:03:03.3]} 10... Be6 {[%clk 0:02:59.2]} 11. h4
{[%clk 0:02:55.6]} 11... Qa5 {[%clk 0:02:55.5]} 12. Kb1 {[%clk 0:02:55.1]} 12...
Rfc8 {[%clk 0:02:55.2]} 13. Bxf6 {[%clk 0:02:45.7]} 13... Bxf6 {[%clk
0:02:52.9]} 14. Nd5 {[%clk 0:02:45.2]} 14... Qxd2 {[%clk 0:02:51.4]} 15. Nxf6+
{[%clk 0:02:45.8]} 15... Kg7 {[%clk 0:02:51.3]} 16. Rxd2 {[%clk 0:02:46.6]}
16... Kxf6 {[%clk 0:02:50.6]} 17. h5 {[%clk 0:02:44.2]} 17... g5 {[%clk
0:02:49.3]} 18. Bd3 {[%clk 0:02:43.8]} 18... h6 {[%clk 0:02:47]} 19. b3 {[%clk
0:02:27.3]} 19... a5 {[%clk 0:02:24.8]} 20. a4 {[%clk 0:02:25.7]} 20... Rc5
{[%clk 0:02:19]} 21. Kb2 {[%clk 0:02:24.3]} 21... Rac8 {[%clk 0:02:18.1]} 22. g3
{[%clk 0:02:15.4]} 22... Bd7 {[%clk 0:02:12.2]} 23. Be2 {[%clk 0:02:02.5]} 23...
b5 {[%clk 0:02:11]} 24. axb5 {[%clk 0:01:51.5]} 24... Bxb5 {[%clk 0:02:11.9]}
25. Rg1 {[%clk 0:01:27]} 25... Rb8 {[%clk 0:01:41.9]} 26. Bxb5 {[%clk 0:01:25]}
26... Rbxb5 {[%clk 0:01:40.9]} 27. Rd4 {[%clk 0:01:25.4]} 27... Ke5 {[%clk
0:01:23.3]} 28. Rgd1 {[%clk 0:01:22.4]} 28... Rb4 {[%clk 0:01:21.3]} 29. Rd5+
{[%clk 0:01:20.8]} 29... Kf6 {[%clk 0:01:03.7]} 30. Rxc5 {[%clk 0:01:17.7]}
30... dxc5 {[%clk 0:01:03.7]} 31. Rd5 {[%clk 0:01:12.6]} 31... a4 {[%clk
0:00:53.6]} 32. Rxc5 {[%clk 0:01:12]} 32... axb3 {[%clk 0:00:53.7]} 33. cxb3
{[%clk 0:01:12.6]} 33... g4 {[%clk 0:00:54.2]} 34. Kc3 {[%clk 0:01:13.2]} 34...
Rb6 {[%clk 0:00:11]} 35. f4 {[%clk 0:01:12.1]} 1-0

[Event "Early-Titled-Tuesday-Blitz-April-23-2024"]
[Site "Chess.com"]
[Date "2024.04.23"]
[Round "7"]
[White "scarabee43"]
[Black "arenal72"]
[Result "1-0"]
[WhiteElo "2830"]
[BlackElo "2620"]
[TimeControl "180+1"]
[EndTime "9:19:08 PDT"]
[Termination "scarabee43 won by resignation"]

1. Nf3 {[%clk 0:03:00.9]} 1... d6 {[%clk 0:02:58.7]} 2. d4 {[%clk 0:03:00.4]}
2... Nf6 {[%clk 0:02:57.7]} 3. c4 {[%clk 0:02:58.6]} 3... g6 {[%clk 0:02:58]} 4.
Nc3 {[%clk 0:02:58.9]} 4... Bf5 {[%clk 0:02:57.9]} 5. g3 {[%clk 0:02:57.8]} 5...
Bg7 {[%clk 0:02:57.1]} 6. Bg2 {[%clk 0:02:58.3]} 6... Ne4 {[%clk 0:02:57.2]} 7.
Qb3 {[%clk 0:02:51]} 7... Nxc3 {[%clk 0:02:56.8]} 8. bxc3 {[%clk 0:02:47.2]}
8... Be4 {[%clk 0:02:54.7]} 9. O-O {[%clk 0:02:45.5]} 9... O-O {[%clk
0:02:53.3]} 10. Bh3 {[%clk 0:02:42.7]} 10... c5 {[%clk 0:02:49.4]} 11. Nd2
{[%clk 0:02:41]} 11... Bc6 {[%clk 0:02:37.3]} 12. d5 {[%clk 0:02:38.7]} 12...
Bd7 {[%clk 0:02:37.3]} 13. Bg2 {[%clk 0:02:39.4]} 13... Qc7 {[%clk 0:02:27.6]}
14. e4 {[%clk 0:02:36.7]} 14... h5 {[%clk 0:02:11.1]} 15. Nf3 {[%clk 0:02:33.6]}
15... Bg4 {[%clk 0:02:04.9]} 16. Ng5 {[%clk 0:02:29.7]} 16... Qb6 {[%clk
0:01:23.2]} 17. Bd2 {[%clk 0:02:19.3]} 17... Qa6 {[%clk 0:01:10.5]} 18. Rae1
{[%clk 0:02:13.2]} 18... f6 {[%clk 0:00:47.1]} 19. Nh3 {[%clk 0:02:02.8]} 19...
Nd7 {[%clk 0:00:42.3]} 20. Nf4 {[%clk 0:01:37.4]} 20... Ne5 {[%clk 0:00:41.8]}
21. Bc1 {[%clk 0:00:59.2]} 21... Kh7 {[%clk 0:00:41]} 22. f3 {[%clk 0:00:55.3]}
22... Bd7 {[%clk 0:00:40.1]} 23. Rf2 {[%clk 0:00:55.9]} 23... Qxc4 {[%clk
0:00:37.3]} 24. Qb2 {[%clk 0:00:43.1]} 24... Qb5 {[%clk 0:00:29.6]} 25. Qd2
{[%clk 0:00:40.3]} 25... Bh6 {[%clk 0:00:25.1]} 26. h4 {[%clk 0:00:37]} 26...
Bxf4 {[%clk 0:00:22.2]} 27. Qxf4 {[%clk 0:00:35.4]} 27... g5 {[%clk 0:00:20.8]}
28. hxg5 {[%clk 0:00:33.1]} 28... Nd3 {[%clk 0:00:21.1]} 29. g6+ {[%clk
0:00:33.6]} 29... Kxg6 {[%clk 0:00:18]} 30. Qh6+ {[%clk 0:00:34.1]} 30... Kf7
{[%clk 0:00:18.2]} 31. Qxh5+ {[%clk 0:00:34.8]} 31... Kg7 {[%clk 0:00:18.3]} 32.
Bh6+ {[%clk 0:00:35.1]} 32... Kg8 {[%clk 0:00:18.3]} 33. Qg6+ {[%clk 0:00:35.1]}
1-0

[Event "Early-Titled-Tuesday-Blitz-April-23-2024"]
[Site "Chess.com"]
[Date "2024.04.23"]
[Round "7"]
[White "BashirovKemal"]
[Black "Juicy_Fork"]
[Result "1-0"]
[WhiteElo "2721"]
[BlackElo "2469"]
[TimeControl "180+1"]
[EndTime "9:19:10 PDT"]
[Termination "BashirovKemal won by resignation"]

1. d4 {[%clk 0:03:00.9]} 1... Nf6 {[%clk 0:02:55]} 2. Nf3 {[%clk 0:03:01.1]}
2... g6 {[%clk 0:02:53]} 3. Nbd2 {[%clk 0:03:01]} 3... d5 {[%clk 0:02:52]} 4. e3
{[%clk 0:03:01.5]} 4... Bg7 {[%clk 0:02:52.3]} 5. b4 {[%clk 0:03:02.1]} 5... O-O
{[%clk 0:02:51.8]} 6. Bb2 {[%clk 0:03:02.7]} 6... a5 {[%clk 0:02:45.9]} 7. b5
{[%clk 0:03:03.2]} 7... c6 {[%clk 0:02:46.1]} 8. c4 {[%clk 0:03:03.2]} 8... dxc4
{[%clk 0:02:44.6]} 9. Bxc4 {[%clk 0:03:04.1]} 9... cxb5 {[%clk 0:02:44.7]} 10.
Bxb5 {[%clk 0:03:04.4]} 10... Bd7 {[%clk 0:02:44]} 11. Bxd7 {[%clk 0:03:01.4]}
11... Nbxd7 {[%clk 0:02:44.9]} 12. O-O {[%clk 0:03:01]} 12... b5 {[%clk
0:02:44.8]} 13. Qe2 {[%clk 0:02:59.3]} 13... a4 {[%clk 0:02:44.3]} 14. Ba3
{[%clk 0:02:52.6]} 14... Qa5 {[%clk 0:02:42.2]} 15. Bxe7 {[%clk 0:02:47.6]}
15... Rfe8 {[%clk 0:02:41.4]} 16. Bd6 {[%clk 0:02:47.9]} 16... Nb6 {[%clk
0:02:37.8]} 17. Rac1 {[%clk 0:02:43.7]} 17... Rac8 {[%clk 0:02:32]} 18. Ne5
{[%clk 0:02:40.1]} 18... Nfd5 {[%clk 0:02:19.6]} 19. Nc6 {[%clk 0:02:31]} 19...
Nc3 {[%clk 0:01:43.9]} 20. Qf3 {[%clk 0:02:28]} 20... Rxc6 {[%clk 0:01:41.1]}
21. Qxc6 {[%clk 0:02:25.6]} 21... Rc8 {[%clk 0:01:22.5]} 22. Qf3 {[%clk
0:02:14.2]} 22... Nxa2 {[%clk 0:00:46.2]} 23. Rcd1 {[%clk 0:01:40.8]} 23... h5
{[%clk 0:00:21.1]} 24. Ne4 {[%clk 0:01:35.8]} 24... Nd7 {[%clk 0:00:15.3]} 25.
Ng5 {[%clk 0:01:30.2]} 25... Bf6 {[%clk 0:00:12.8]} 26. Nxf7 {[%clk 0:01:16.5]}
26... Kxf7 {[%clk 0:00:12.5]} 27. Qd5+ {[%clk 0:01:16.1]} 27... Kg7 {[%clk
0:00:11.8]} 28. Qxa2 {[%clk 0:01:15.5]} 28... b4 {[%clk 0:00:11.7]} 29. Qe6
{[%clk 0:01:14.5]} 29... Rd8 {[%clk 0:00:07.4]} 30. Rc1 {[%clk 0:01:11.1]} 30...
Qb6 {[%clk 0:00:07.2]} 31. Rc7 {[%clk 0:01:06]} 31... Qb5 {[%clk 0:00:06.2]} 32.
Be7 {[%clk 0:01:01.4]} 32... Qf5 {[%clk 0:00:02.9]} 33. Bxf6+ {[%clk 0:00:56.9]}
33... Qxf6 {[%clk 0:00:03.4]} 34. Rxd7+ {[%clk 0:00:55.8]} 1-0

[Event "Early-Titled-Tuesday-Blitz-April-23-2024"]
[Site "Chess.com"]
[Date "2024.04.23"]
[Round "7"]
[White "ValentinDragnev"]
[Black "Mackster23"]
[Result "1-0"]
[WhiteElo "2747"]
[BlackElo "2583"]
[TimeControl "180+1"]
[EndTime "9:19:14 PDT"]
[Termination "ValentinDragnev won by resignation"]

1. d4 {[%clk 0:02:54.8]} 1... Nf6 {[%clk 0:02:59.7]} 2. Nf3 {[%clk 0:02:55.4]}
2... d5 {[%clk 0:02:59.4]} 3. Bf4 {[%clk 0:02:55.8]} 3... c5 {[%clk 0:02:59.2]}
4. e3 {[%clk 0:02:56.5]} 4... Nc6 {[%clk 0:02:58.8]} 5. Nbd2 {[%clk 0:02:56.7]}
5... e6 {[%clk 0:02:56.5]} 6. c3 {[%clk 0:02:56.2]} 6... cxd4 {[%clk 0:02:56.2]}
7. exd4 {[%clk 0:02:56.2]} 7... Nh5 {[%clk 0:02:56.5]} 8. Be3 {[%clk 0:02:56.8]}
8... Bd6 {[%clk 0:02:56.9]} 9. Bd3 {[%clk 0:02:57.5]} 9... Nf4 {[%clk
0:02:56.3]} 10. Bxf4 {[%clk 0:02:58.2]} 10... Bxf4 {[%clk 0:02:56.3]} 11. g3
{[%clk 0:02:58.9]} 11... Bd6 {[%clk 0:02:52.2]} 12. O-O {[%clk 0:02:58.6]} 12...
O-O {[%clk 0:02:41.7]} 13. Re1 {[%clk 0:02:59.2]} 13... Qf6 {[%clk 0:02:35.6]}
14. b4 {[%clk 0:02:45.8]} 14... a6 {[%clk 0:02:25.3]} 15. Qe2 {[%clk 0:02:38.6]}
15... Re8 {[%clk 0:02:22.1]} 16. Ne5 {[%clk 0:02:38.5]} 16... Bxe5 {[%clk
0:02:19.3]} 17. dxe5 {[%clk 0:02:39.4]} 17... Qe7 {[%clk 0:02:17.9]} 18. a4
{[%clk 0:02:37.8]} 18... d4 {[%clk 0:01:22.1]} 19. Qe4 {[%clk 0:02:23]} 19... g6
{[%clk 0:01:22.5]} 20. b5 {[%clk 0:02:01.6]} 20... dxc3 {[%clk 0:01:13]} 21. Nc4
{[%clk 0:02:01.8]} 21... Nb4 {[%clk 0:01:03.1]} 22. Nd6 {[%clk 0:02:01.8]} 22...
Nxd3 {[%clk 0:00:51.4]} 23. Qxd3 {[%clk 0:02:02.7]} 23... Rd8 {[%clk 0:00:45.8]}
24. Qxc3 {[%clk 0:02:03]} 24... f6 {[%clk 0:00:38.3]} 25. Ne4 {[%clk 0:01:45.7]}
25... f5 {[%clk 0:00:25.4]} 26. Nf6+ {[%clk 0:01:45.9]} 26... Kg7 {[%clk
0:00:24.7]} 27. Rad1 {[%clk 0:01:43.5]} 27... axb5 {[%clk 0:00:17.3]} 28. axb5
{[%clk 0:01:43.4]} 28... Ra4 {[%clk 0:00:07.9]} 29. Rxd8 {[%clk 0:01:37.3]}
29... Qxd8 {[%clk 0:00:08.8]} 30. Rc1 {[%clk 0:01:37.7]} 30... Ra8 {[%clk
0:00:02.5]} 31. Qc7+ {[%clk 0:01:36.3]} 31... Qxc7 {[%clk 0:00:02.4]} 32. Rxc7+
{[%clk 0:01:37.2]} 32... Kf8 {[%clk 0:00:02.1]} 33. Nxh7+ {[%clk 0:01:22.9]}
33... Ke8 {[%clk 0:00:02.8]} 34. Nf6+ {[%clk 0:01:23.8]} 34... Kd8 {[%clk
0:00:03.5]} 35. Rh7 {[%clk 0:01:24.6]} 35... b6 {[%clk 0:00:02.1]} 36. h4 {[%clk
0:01:19.2]} 36... Ra5 {[%clk 0:00:02.3]} 37. Rh8+ {[%clk 0:01:11.5]} 37... Kc7
{[%clk 0:00:02.3]} 38. Ne8+ {[%clk 0:01:12.2]} 38... Kb8 {[%clk 0:00:01.8]} 39.
Nd6 {[%clk 0:01:13.1]} 39... Ra1+ {[%clk 0:00:02]} 40. Kg2 {[%clk 0:01:13]}
40... Rc1 {[%clk 0:00:02.9]} 41. Rg8 {[%clk 0:01:11.2]} 41... g5 {[%clk
0:00:01.9]} 42. h5 {[%clk 0:01:10.1]} 1-0

[Event "Early-Titled-Tuesday-Blitz-April-23-2024"]
[Site "Chess.com"]
[Date "2024.04.23"]
[Round "7"]
[White "Pasmendjambvirgulptipon98"]
[Black "toninhojit"]
[Result "0-1"]
[WhiteElo "2358"]
[BlackElo "2556"]
[TimeControl "180+1"]
[EndTime "9:19:16 PDT"]
[Termination "toninhojit won by resignation"]

1. Nf3 {[%clk 0:03:00.9]} 1... c5 {[%clk 0:02:54.4]} 2. g3 {[%clk 0:02:59.6]}
2... Nc6 {[%clk 0:02:54.4]} 3. Bg2 {[%clk 0:02:59.4]} 3... e5 {[%clk 0:02:53.8]}
4. O-O {[%clk 0:02:55.8]} 4... g6 {[%clk 0:02:52.8]} 5. d3 {[%clk 0:02:55.8]}
5... Bg7 {[%clk 0:02:53.4]} 6. e4 {[%clk 0:02:52.3]} 6... Nge7 {[%clk
0:02:53.8]} 7. a3 {[%clk 0:02:50.2]} 7... O-O {[%clk 0:02:54.4]} 8. b4 {[%clk
0:02:48.2]} 8... d6 {[%clk 0:02:54.9]} 9. bxc5 {[%clk 0:02:46.5]} 9... dxc5
{[%clk 0:02:55.8]} 10. Be3 {[%clk 0:02:47]} 10... b6 {[%clk 0:02:54.1]} 11. Nbd2
{[%clk 0:02:46.3]} 11... f5 {[%clk 0:02:53.6]} 12. exf5 {[%clk 0:02:42.9]} 12...
gxf5 {[%clk 0:02:54.5]} 13. Nc4 {[%clk 0:02:39.9]} 13... e4 {[%clk 0:02:40.7]}
14. Ng5 {[%clk 0:02:28.2]} 14... h6 {[%clk 0:02:20.9]} 15. Nh3 {[%clk
0:02:27.3]} 15... Be6 {[%clk 0:02:21.2]} 16. Nd2 {[%clk 0:02:10.3]} 16... Bxa1
{[%clk 0:02:16.6]} 17. Qxa1 {[%clk 0:02:11.2]} 17... Nd4 {[%clk 0:02:17.1]} 18.
Bxh6 {[%clk 0:02:05.8]} 18... Rf6 {[%clk 0:02:08.5]} 19. Bg5 {[%clk 0:02:05.7]}
19... Rg6 {[%clk 0:02:08.5]} 20. dxe4 {[%clk 0:02:05.9]} 20... Rc8 {[%clk
0:01:35.1]} 21. Nf4 {[%clk 0:01:57.2]} 21... Rxg5 {[%clk 0:01:33.2]} 22. Nxe6
{[%clk 0:01:57.4]} 22... Nxe6 {[%clk 0:01:34.1]} 23. Qf6 {[%clk 0:01:52.8]}
23... Rg6 {[%clk 0:01:27.1]} 24. Qc3 {[%clk 0:01:52.7]} 24... Qd4 {[%clk
0:01:24.4]} 25. Qb3 {[%clk 0:01:45.6]} 25... Qxd2 {[%clk 0:01:20.1]} 26. exf5
{[%clk 0:01:45.3]} 26... Nxf5 {[%clk 0:01:20.4]} 27. Be4 {[%clk 0:01:40.6]}
27... Nd4 {[%clk 0:01:19.1]} 28. Qc4 {[%clk 0:01:34.8]} 28... Rf6 {[%clk
0:01:15.5]} 29. c3 {[%clk 0:01:35.1]} 29... Ne2+ {[%clk 0:01:12]} 30. Kg2 {[%clk
0:01:30.2]} 30... Nxc3 {[%clk 0:01:08.5]} 31. Bf3 {[%clk 0:01:16.6]} 31... Rcf8
{[%clk 0:01:00.8]} 32. h4 {[%clk 0:01:13.4]} 32... Kg7 {[%clk 0:00:58.4]} 33.
Qg4+ {[%clk 0:01:01.6]} 33... Kh7 {[%clk 0:00:57.5]} 34. Be4+ {[%clk 0:00:50.9]}
34... Nxe4 {[%clk 0:00:56.6]} 35. Qxe4+ {[%clk 0:00:51.8]} 35... Kh8 {[%clk
0:00:50.4]} 36. Qe5 {[%clk 0:00:49.1]} 36... Qd4 {[%clk 0:00:48.7]} 37. Qh5+
{[%clk 0:00:48.8]} 37... Kg7 {[%clk 0:00:47.3]} 38. f4 {[%clk 0:00:47.5]} 38...
Rd8 {[%clk 0:00:37]} 39. Qg4+ {[%clk 0:00:46.5]} 39... Kf8 {[%clk 0:00:34.1]}
40. f5 {[%clk 0:00:42]} 40... Qxg4 {[%clk 0:00:34]} 0-1